bitfinex/quotes_ETHUSD_20241104
["timestamp","ask_amount","ask_price","bid_price","bid_amount"]
[1730738848241,4.12899,2421.9,2421.4,4.12983]
[1730738848433,0.007953,2422.9,2422.5,4.12788]
[1730738848672,0.007953,2422.9,2422.6,0.9044431]
[1730738848918,4.12766,2422.7,2422.2,3.0]
[1730738849180,4.12762,2422.7,2422.2,7.12839]
[1730738849393,4.12762,2422.7,2422.2,3.0]
[1730738849540,4.1275,2422.8,2422.2,7.12842]
[1730738849742,4.135343,2422.9,2422.3,4.21082157]
[1730738849941,4.135343,2422.9,2422.4,4.12801]
[1730738849942,0.007953,2422.9,2422.4,4.12801]
[1730738850280,0.007953,2422.9,2422.5,0.08254667]
[1730738850447,4.135323,2422.9,2422.0,4.95063]
[1730738850651,4.135323,2422.9,2422.2,4.12847]
[1730738850652,4.12764,2422.7,2422.2,4.12847]
[1730738850834,4.12764,2422.7,2421.8,9.50074949]
[1730738850835,4.88815,2422.8,2421.6,4.87997]
[1730738851032,4.88815,2422.8,2421.6,4.88009]
[1730738851033,4.12861,2422.2,2421.6,4.88009]
[1730738851781,3.0,2422.7,2421.6,4.87998]
[1730738851938,4.12856,2422.2,2421.7,4.12932]
[1730738852138,4.12822,2422.4,2421.9,4.12897]
[1730738852442,3.0,2422.7,2421.9,8.25784]
[1730738852443,4.12797,2422.5,2421.9,8.25784]
[1730738852672,4.1284,2422.3,2421.7,4.12933]
[1730738852843,4.1284,2422.3,2421.7,8.25856]
[1730738853044,4.12868,2422.1,2421.6,4.88008]
[1730738853284,4.12868,2422.1,2421.6,0.7506]
[1730738853441,7.88817,2422.8,2421.7,4.12921]
[1730738853442,0.8176,2422.2,2421.7,4.12921]
[1730738853636,0.8176,2422.2,2421.8,0.0825729]
[1730738853843,0.8176,2422.2,2421.7,4.12921]
[1730738854159,4.12767,2422.7,2421.8,4.12899]
[1730738854338,4.12842,2422.3,2421.8,8.25806]
[1730738854541,4.12815,2422.4,2421.9,4.12897]
[1730738854781,4.12833,2422.3,2421.8,4.12899]
[1730738854982,4.12809,2422.5,2421.9,4.1289]
[1730738854983,4.12813,2422.4,2421.9,4.1289]
[1730738855285,4.12809,2422.5,2422.1,4.12864]
[1730738855467,4.12788,2422.6,2421.9,4.1289]
[1730738855638,4.12781,2422.6,2422.1,4.12854]
[1730738855842,4.12747,2422.8,2422.1,4.12858]
[1730738856082,4.12747,2422.8,2422.3,4.12819]
[1730738856083,9.4631213,2422.8,2422.3,4.12819]
[1730738856387,5.3355113,2422.8,2422.4,0.08255232]
[1730738856538,4.12747,2422.8,2422.3,4.12819]
[1730738856737,4.12747,2422.8,2422.0,3.0]
[1730738856738,4.12773,2422.7,2422.2,4.12846]
[1730738856967,4.135253,2422.9,2422.4,4.90245]
[1730738857179,0.007953,2422.9,2422.4,0.7744]
[1730738857494,0.007953,2422.9,2422.6,4.12779]
[1730738857657,0.007953,2422.9,2422.7,4.45956689]
[1730738857845,0.127953,2422.9,2422.8,4.12745]
[1730738858495,0.127953,2422.9,2422.8,4.77600427]
[1730738858639,0.127953,2422.9,2422.8,8.58240427]
[1730738859067,5.32430032,2423.9,2423.2,4.12673]
[1730738859068,4.12594,2423.7,2423.2,4.12673]
[1730738859284,4.12576,2423.8,2423.3,4.45855608]
[1730738859443,4.12599,2423.7,2423.4,0.24951828]
[1730738859637,4.12599,2423.7,2423.2,8.25338]
[1730738859970,4.12576,2423.8,2423.3,4.4582738]
[1730738859971,8.25164,2423.8,2423.3,4.4582738]
[1730738860201,5.07078803,2423.8,2423.3,4.20907781]
[1730738860555,4.12576,2423.8,2423.3,0.08251781]
[1730738860761,4.12593,2423.7,2423.3,0.08251781]
[1730738861090,4.12576,2423.8,2423.2,4.52514819]
[1730738861388,8.25167,2423.8,2423.3,4.45805135]
[1730738861687,0.42924032,2423.9,2423.4,0.7796]
[1730738861922,0.42924032,2423.9,2423.5,4.12618]
[1730738862395,0.42924032,2423.9,2423.4,0.7796]
[1730738862545,0.42924032,2423.9,2423.4,4.90602]
[1730738862546,4.12568,2423.9,2423.4,4.90602]
[1730738862882,0.0598355,2424.2,2423.5,4.12622]
[1730738863092,4.12559,2423.9,2423.6,0.08250451]
[1730738863245,4.12585,2423.8,2423.4,3.7796]
[1730738863445,4.12559,2423.9,2423.5,0.24878682]
[1730738863789,4.12559,2423.9,2423.5,4.12625]
[1730738864017,4.12559,2423.9,2423.4,3.7796]
[1730738864200,4.12559,2423.9,2423.4,7.90595]
[1730738864513,4.12559,2423.9,2423.5,0.24880535]
[1730738864674,0.0598355,2424.2,2423.6,0.08251092]
[1730738865026,0.0598355,2424.2,2423.8,4.12561]
[1730738865193,0.0598355,2424.2,2423.9,4.20795645]
[1730738865570,0.0598355,2424.2,2424.0,4.12539]
[1730738865909,0.0598355,2424.2,2424.1,3.8049]
[1730738866400,0.0598355,2424.2,2424.1,0.8049]
[1730738867717,0.0598355,2424.2,2424.1,4.93014]
[1730738867892,3.32376001,2424.6,2424.1,4.93014]
[1730738868421,4.12467,2424.5,2424.1,0.8049]
[1730738868574,0.7701,2424.8,2424.1,0.8049]
[1730738868772,4.12422,2424.7,2424.2,0.0824887]
[1730738868974,8.24859,2424.7,2424.2,4.2075187]
[1730738869409,4.12406,2424.8,2424.3,4.1248]
[1730738869616,0.8139,2425.3,2424.6,5.37167949]
[1730738869919,0.8139,2425.3,2424.4,4.93152]
[1730738869920,4.12397,2424.9,2424.4,4.93152]
[1730738870131,0.8139,2425.3,2424.7,3.0]
[1730738870278,4.12337,2425.2,2424.8,0.66825059]
[1730738870476,4.12337,2425.2,2424.1,0.02]
[1730738870477,0.8013,2425.2,2424.1,4.12521]
[1730738870783,0.8013,2425.2,2424.0,0.7866]
[1730738870784,4.12513,2424.2,2424.0,0.343978]
[1730738871009,4.9257,2424.6,2424.0,0.343978]
[1730738871010,0.8013,2424.6,2424.0,0.343978]
[1730738871207,4.12474,2424.4,2424.0,0.42647252]
[1730738871423,4.12474,2424.4,2424.1,0.34301039]
[1730738871918,4.12459,2424.5,2424.1,1.01126098]
[1730738872224,0.8013,2425.3,2424.2,1.14840572]
[1730738872372,0.8013,2425.3,2424.3,4.12481]
[1730738872373,4.12414,2424.8,2424.3,4.12481]
[1730738872731,4.12431,2424.7,2424.2,8.27338572]
[1730738873214,0.8013,2425.3,2424.4,4.12465]
[1730738873215,4.12393,2424.9,2424.4,4.12465]
[1730738873711,8.2479,2424.9,2424.4,4.12465]
[1730738873876,4.12415,2424.8,2424.3,4.12482]
[1730738874072,4.12361,2425.1,2424.4,4.1247]
[1730738874318,4.12361,2425.1,2424.2,4.14840572]
[1730738874319,4.12391,2424.9,2424.5,4.12448]
[1730738874821,4.12405,2424.8,2424.3,4.12487]
[1730738874998,4.12405,2424.8,2424.2,4.14840572]
[1730738874999,4.12456,2424.5,2424.2,1.14840572]
[1730738875205,4.12456,2424.5,2424.2,0.34260572]
[1730738875436,0.904674,2424.5,2424.2,0.34260572]
[1730738875746,4.67439,2424.6,2423.6,0.3967185]
[1730738875950,4.67439,2424.6,2423.5,0.7517]
[1730738875951,4.12543,2424.0,2423.5,0.7517]
[1730738876105,4.12525,2424.1,2423.6,4.20858818]
[1730738876308,4.12525,2424.1,2423.6,8.33458818]
[1730738876509,4.12525,2424.1,2423.6,4.126]
[1730738877105,3.0,2424.8,2423.6,7.12609]
[1730738877106,4.12485,2424.4,2423.6,7.12609]
[1730738877311,4.12485,2424.4,2423.9,8.25095]
[1730738877522,4.12485,2424.4,2423.9,4.12546]
[1730738878032,4.12485,2424.4,2424.0,4.12533]
[1730738878345,4.12449,2424.6,2424.1,0.7509]
[1730738878346,4.12456,2424.5,2424.1,0.7509]
[1730738878548,4.1248,2424.4,2424.1,0.7509]
[1730738878851,4.1248,2424.4,2424.0,4.12539]
[1730738879145,4.12456,2424.5,2424.0,4.12539]
[1730738879346,4.12448,2424.6,2424.1,4.20764547]
[1730738879510,4.12448,2424.6,2424.1,4.12515]
[1730738879511,4.12441,2424.6,2424.1,4.12515]
[1730738879706,4.12429,2424.7,2424.2,4.12497]
[1730738879943,4.12446,2424.6,2424.2,4.12497]
[1730738880244,4.12429,2424.7,2423.8,4.87662]
[1730738880245,4.12457,2424.5,2424.1,4.12521]
[1730738880422,4.12444,2424.6,2424.1,4.12521]
[1730738881048,0.60391469,2424.6,2423.8,0.7509]
[1730738881262,4.9013,2424.4,2423.7,0.24825463]
[1730738881423,4.1255,2424.0,2423.6,0.24843446]
[1730738881612,4.9013,2424.4,2423.6,0.24843446]
[1730738881613,4.1252,2424.2,2423.7,4.12584]
[1730738881808,4.1252,2424.2,2423.7,4.20834747]
[1730738882108,4.1252,2424.2,2423.8,4.12573]
[1730738882309,4.12479,2424.4,2423.9,4.37417512]
[1730738882548,4.12452,2424.6,2424.0,4.12526]
[1730738882886,4.12457,2424.5,2424.0,4.12524]
[1730738883086,4.12478,2424.4,2423.9,4.12558]
[1730738883253,4.12478,2424.4,2424.0,4.37426113]
[1730738883456,0.783,2424.7,2424.1,0.24885038]
[1730738883457,4.12439,2424.6,2424.1,0.24885038]
[1730738883652,4.12504,2424.3,2424.0,0.7892]
[1730738883865,4.1248,2424.4,2424.1,0.24880871]
[1730738884054,4.1248,2424.4,2424.0,0.7892]
[1730738884055,4.12456,2424.5,2424.0,4.91447]
[1730738884250,4.12456,2424.5,2424.1,0.24885727]
[1730738884483,4.12478,2424.4,2424.2,0.24885727]
[1730738884679,4.12456,2424.5,2424.0,4.91447]
[1730738884977,4.12442,2424.6,2424.1,4.77275685]
[1730738885279,4.12442,2424.6,2424.2,4.37408647]
[1730738885480,4.12466,2424.5,2424.3,0.24904647]
[1730738885683,4.12473,2424.4,2424.0,0.7892]
[1730738885890,4.12473,2424.4,2424.1,0.64833748]
[1730738885891,4.125,2424.3,2424.1,0.64833748]
[1730738886203,4.12473,2424.4,2423.7,0.7662]
[1730738886204,4.12543,2424.0,2423.7,0.7662]
[1730738886350,0.824973,2424.3,2423.8,0.64902161]
[1730738886569,0.824973,2424.3,2423.5,7.89238]
[1730738886570,4.12543,2424.0,2423.9,0.24961745]
[1730738887777,4.12543,2424.0,2423.3,0.7941]
[1730738887778,4.12567,2423.9,2423.4,3.0]
[1730738887971,4.12567,2423.9,2423.5,0.64981522]
[1730738888166,4.12567,2423.9,2423.6,0.64981522]
[1730738888416,4.12567,2423.9,2423.7,0.64981522]
[1730738888705,4.12567,2423.9,2423.8,0.24992268]
[1730738891707,4.1266,2423.3,2423.2,0.3427471]
[1730738891875,4.1266,2423.3,2423.2,0.74313081]
[1730738891876,4.6766,2423.3,2423.2,0.74313081]
[1730738892213,5.638837,2423.3,2423.2,0.3427471]
[1730738892811,4.12719,2423.0,2422.8,0.40011689]
[1730738893103,4.12719,2423.0,2422.4,0.7602]
[1730738893302,8.25443,2423.0,2422.5,4.52775586]
[1730738893503,8.25443,2423.0,2422.6,0.39981586]
[1730738893712,4.12719,2423.0,2422.4,4.88832]
[1730738893912,4.12719,2423.0,2422.6,4.12776]
[1730738894141,0.962237,2423.3,2422.4,0.7602]
[1730738894142,4.12667,2423.3,2422.8,4.12737]
[1730738894301,4.94583,2423.4,2422.8,4.12737]
[1730738894302,4.12677,2423.2,2422.8,4.12737]
[1730738894494,4.12677,2423.2,2422.7,4.1276]
[1730738894695,4.12677,2423.2,2422.8,0.39955809]
[1730738894696,8.25365,2423.2,2422.8,0.39955809]
[1730738894994,8.25365,2423.2,2422.6,4.12766]
[1730738894995,4.12703,2423.1,2422.6,8.25536]
[1730738895359,3.0,2423.7,2422.3,4.12828]
[1730738895360,4.12634,2423.5,2422.8,0.8294]
[1730738895530,4.12672,2423.3,2422.9,0.39938488]
[1730738895835,4.12685,2423.2,2422.8,0.8294]
[1730738896703,4.1271,2423.1,2422.8,1.2287035]
[1730738896893,4.1271,2423.1,2422.8,0.8294]
[1730738897242,4.12703,2423.1,2422.8,0.8294]
[1730738897538,4.12678,2423.2,2422.8,0.8294]
[1730738898037,4.12678,2423.2,2422.8,4.95684]
[1730738898404,4.12673,2423.3,2422.8,4.95684]
[1730738898644,0.7856,2423.7,2422.9,0.08253539]
[1730738898943,0.7845,2424.1,2423.3,0.8012]
[1730738899098,4.12643,2423.4,2423.0,3.8294]
[1730738899292,4.12646,2423.4,2423.0,3.8294]
[1730738899697,4.1266,2423.3,2423.0,3.8294]
[1730738899995,4.1266,2423.3,2423.0,0.8294]
[1730738900196,4.12651,2423.4,2423.0,0.8294]
[1730738900698,4.12636,2423.5,2423.0,0.8294]
[1730738900895,4.12656,2423.4,2423.0,0.8294]
[1730738901549,0.8174,2423.6,2422.8,0.39916403]
[1730738901695,4.12754,2422.8,2422.4,0.776]
[1730738902144,4.12754,2422.8,2422.4,4.90413]
[1730738902298,4.12721,2423.0,2422.4,4.90405]
[1730738902503,4.12736,2422.9,2422.5,0.490405]
[1730738902841,4.89389,2423.1,2422.5,0.490405]
[1730738902842,4.12697,2423.1,2422.6,4.12771]
[1730738903199,4.12685,2423.2,2422.7,4.12751]
[1730738903397,4.91935,2423.4,2422.9,4.12721]
[1730738903606,4.12655,2423.4,2423.0,4.12709]
[1730738903808,0.8009,2423.7,2422.9,4.92121]
[1730738903809,0.8009,2423.7,2422.9,0.794]
[1730738904023,4.70979555,2424.0,2423.5,4.12618]
[1730738904024,4.12549,2424.0,2423.5,4.12618]
[1730738904230,4.12549,2424.0,2423.6,4.12607]
[1730738904437,4.12549,2424.0,2423.4,4.92033]
[1730738904438,4.12567,2423.9,2423.4,4.92033]
[1730738904646,4.12549,2424.0,2423.5,4.37540166]
[1730738904831,4.12549,2424.0,2423.5,4.12614]
[1730738905130,4.12556,2424.0,2423.4,4.92042]
[1730738905342,4.12561,2423.9,2423.5,4.37554699]
[1730738905546,4.12556,2424.0,2423.5,4.37554699]
[1730738905547,4.12543,2424.0,2423.6,0.08251148]
[1730738905750,4.12543,2424.0,2423.5,4.12617]
[1730738905953,4.12543,2424.0,2423.6,4.45789401]
[1730738906112,4.12513,2424.2,2423.6,4.12602]
[1730738906307,4.12391,2424.9,2423.6,4.12602]
[1730738906308,0.8329,2425.1,2424.0,3.0]
[1730738906513,0.8329,2425.1,2423.8,0.8047]
[1730738906514,4.1249,2424.3,2424.1,0.24930014]
[1730738906769,4.12507,2424.2,2423.8,0.8047]
[1730738906914,4.12507,2424.2,2423.9,0.24931667]
[1730738907254,4.12507,2424.2,2424.0,0.24931974]
[1730738907428,4.12524,2424.1,2424.0,0.24931974]
[1730738908113,4.12524,2424.1,2423.6,4.12598]
[1730738908114,4.12547,2424.0,2423.6,4.12598]
[1730738908315,8.25057,2424.1,2423.6,4.12598]
[1730738908554,4.12524,2424.1,2423.6,4.12598]
[1730738908853,4.12524,2424.1,2423.6,8.25195]
[1730738909182,4.12524,2424.1,2423.7,4.12591]
[1730738909513,4.12541,2424.0,2423.6,4.12606]
[1730738910040,4.1256,2423.9,2423.6,3.0]
[1730738910243,8.25093,2424.0,2423.6,3.0]
[1730738910555,4.12541,2424.0,2423.6,3.0]
[1730738910716,4.12541,2424.0,2423.6,3.08251036]
[1730738910919,4.12518,2424.2,2423.6,7.20857036]
[1730738911114,4.12532,2424.1,2423.6,4.12605]
[1730738911320,4.12548,2424.0,2423.5,4.93093]
[1730738911767,4.12547,2424.0,2423.5,4.93093]
[1730738912053,4.12547,2424.0,2423.5,9.05716]
[1730738912361,4.12547,2424.0,2423.6,0.08251046]
[1730738912854,4.12547,2424.0,2423.6,4.20859046]
[1730738913612,4.12547,2424.0,2423.5,0.8047]
[1730738913613,4.12547,2424.0,2423.5,4.93094]
[1730738914217,4.12547,2424.0,2423.6,0.08251053]
[1730738914771,4.12547,2424.0,2423.5,4.93094]
[1730738914772,4.12567,2423.9,2423.5,0.8047]
[1730738914948,0.8329,2424.5,2423.2,0.34154589]
[1730738914949,4.12601,2423.7,2423.2,0.34154589]
[1730738915119,4.12473,2424.4,2423.3,0.24949766]
[1730738915120,4.12643,2423.4,2423.3,0.24949766]
[1730738915322,4.1266,2423.3,2423.2,0.34154589]
[1730738917929,9.38639555,2423.3,2423.2,0.34154589]
[1730738918139,9.38639555,2423.3,2421.9,0.41615217]
[1730738918140,4.12815,2422.4,2422.0,4.1288]
[1730738918341,4.12788,2422.6,2422.1,4.12855]
[1730738918632,4.1267,2423.3,2422.8,4.12738]
[1730738918829,0.787,2423.5,2422.4,1.15213513]
[1730738919034,0.787,2423.5,2422.5,4.37751259]
[1730738919035,4.12721,2423.0,2422.5,4.37751259]
[1730738919220,8.25416,2423.1,2422.6,4.37750259]
[1730738919416,4.12688,2423.2,2422.4,4.88068]
[1730738919759,4.12712,2423.0,2422.5,7.3775608]
[1730738919920,4.12712,2423.0,2422.5,7.12783]
[1730738920121,4.12706,2423.1,2422.5,7.12783]
[1730738920122,4.12729,2422.9,2422.5,7.12783]
[1730738920561,4.12729,2422.9,2422.4,4.88065]
[1730738920721,4.12755,2422.8,2422.4,0.7526]
[1730738920919,4.12765,2422.7,2422.4,0.7526]
[1730738921161,4.12755,2422.8,2422.4,0.7526]
[1730738921363,8.25512,2422.8,2422.4,0.7526]
[1730738921563,4.12755,2422.8,2422.4,0.7526]
[1730738922352,4.12726,2423.0,2422.4,0.7526]
[1730738922873,8.25452,2423.0,2422.5,0.08255038]
[1730738923026,8.25452,2423.0,2422.5,4.12795]
[1730738923442,4.1273,2422.9,2422.4,4.88064]
[1730738923639,4.12764,2422.7,2422.4,0.7526]
[1730738923839,4.12756,2422.8,2422.4,0.7526]
[1730738924744,4.12726,2423.0,2422.4,4.88064]
[1730738924745,8.25454,2423.0,2422.4,4.88064]
[1730738924937,4.12726,2423.0,2422.5,4.12785]
[1730738925147,4.12688,2423.2,2422.8,4.12744]
[1730738925641,4.12688,2423.2,2422.6,4.12769]
[1730738925867,4.12688,2423.2,2422.7,4.12754]
[1730738926030,4.12688,2423.2,2422.6,4.12769]
[1730738926234,4.12712,2423.0,2422.6,4.12769]
[1730738926535,4.12688,2423.2,2422.7,4.12758]
[1730738926742,4.12705,2423.1,2422.4,3.7526]
[1730738927043,4.12706,2423.1,2422.6,4.12778]
[1730738927238,4.12714,2423.0,2422.5,4.1278]
[1730738927443,4.12772,2422.7,2422.4,0.7526]
[1730738927641,4.12783,2422.6,2422.4,0.7526]
[1730738927841,8.25543,2422.7,2422.4,0.7526]
[1730738928029,4.12771,2422.7,2422.4,0.7526]
[1730738928229,4.12758,2422.8,2422.4,0.7526]
[1730738928870,4.12807,2422.5,2422.2,0.8229]
[1730738929055,4.12828,2422.4,2422.0,4.12879]
[1730738929740,4.12828,2422.4,2421.9,8.25784]
[1730738930278,4.12792,2422.6,2422.1,4.12857]
[1730738930431,4.616268,2422.8,2422.2,4.12839]
[1730738930631,4.12762,2422.7,2422.2,4.12839]
[1730738931174,4.616268,2422.8,2422.4,4.12812]
[1730738931175,4.12752,2422.8,2422.4,4.12812]
[1730738931463,4.88633,2423.0,2422.2,4.12834]
[1730738931464,0.7591,2423.0,2422.2,4.12834]
[1730738931629,4.12774,2422.7,2422.2,4.12834]
[1730738932048,4.12774,2422.7,2422.3,4.37814112]
[1730738932249,4.12774,2422.7,2422.3,4.12828]
[1730738932435,4.1273,2422.9,2422.1,0.7615]
[1730738932641,4.12705,2423.1,2422.5,4.12785]
[1730738932843,4.12705,2423.1,2422.6,4.21024567]
[1730738933065,4.12705,2423.1,2422.7,4.12759]
[1730738934250,4.12705,2423.1,2422.6,4.12771]
[1730738934745,4.12711,2423.0,2422.5,4.12794]
[1730738935145,4.12711,2423.0,2422.3,0.7518]
[1730738935146,0.825416,2423.0,2422.3,0.7518]
[1730738935368,4.12789,2422.6,2422.3,0.7518]
[1730738935545,4.12789,2422.6,2422.3,1.00178374]
[1730738936381,4.12789,2422.6,2422.3,0.7518]
[1730738936665,4.12789,2422.6,2422.2,4.12845]
[1730738936666,4.12798,2422.5,2422.1,7.12861]
[1730738936868,4.12789,2422.6,2422.2,0.25014009]
[1730738937026,4.12798,2422.5,2422.1,3.0]
[1730738937232,4.12789,2422.6,2421.3,6.31855994]
[1730738937233,4.1283,2422.3,2421.8,8.32729638]
[1730738937454,4.12856,2422.2,2421.9,0.25017215]
[1730738937674,4.12856,2422.2,2422.0,0.25017215]
[1730738937877,4.12856,2422.2,2421.8,3.7979]
[1730738938073,4.12856,2422.2,2421.9,0.25016724]
[1730738938374,4.12823,2422.4,2422.0,0.2501463]
[1730738938557,4.12823,2422.4,2421.9,4.21151871]
[1730738938736,4.12823,2422.4,2422.0,0.2501441]
[1730738938934,4.12823,2422.4,2421.9,4.21151871]
[1730738939234,4.12823,2422.4,2422.0,0.25014363]
[1730738939235,4.12838,2422.3,2422.0,0.25014363]
[1730738939439,4.12838,2422.3,2421.9,4.12895]
[1730738939639,4.12855,2422.2,2422.0,0.25013751]
[1730738939846,4.12855,2422.2,2421.9,0.25013751]
[1730738940172,4.12878,2422.1,2421.9,0.25016049]
[1730738940580,4.12878,2422.1,2421.8,0.7979]
[1730738940869,8.25758,2422.1,2421.9,0.25015799]
[1730738941038,8.25758,2422.1,2421.9,0.2501596]
[1730738941233,4.12878,2422.1,2421.8,0.7979]
[1730738941438,4.12841,2422.3,2421.8,0.7979]
[1730738941668,4.12851,2422.2,2421.8,1.04804654]
[1730738941834,4.12851,2422.2,2421.8,4.92705]
[1730738942432,4.12839,2422.3,2421.9,0.25009622]
[1730738942639,4.12848,2422.2,2421.9,0.25009622]
[1730738942880,4.12848,2422.2,2422.0,0.25026115]
[1730738943098,4.12867,2422.1,2421.8,0.7979]
[1730738943357,4.12867,2422.1,2421.9,0.25024646]
[1730738943561,4.12867,2422.1,2421.8,0.7979]
[1730738943750,4.12867,2422.1,2421.6,8.25876]
[1730738943945,4.12909,2421.9,2421.7,0.25027335]
[1730738944181,4.12925,2421.8,2421.6,0.25022431]
[1730738944344,4.12944,2421.7,2421.4,0.4004528]
[1730738944543,4.12944,2421.7,2421.2,9.37568893]
[1730738944544,4.12944,2421.7,2421.5,0.25046516]
[1730738944768,4.12944,2421.7,2421.3,0.4004528]
[1730738944769,4.12962,2421.6,2421.3,0.4004528]
[1730738944978,4.12962,2421.6,2421.4,0.25045006]
[1730738945182,8.25922,2421.6,2421.2,0.70752173]
[1730738945358,8.25922,2421.6,2421.3,0.25050093]
[1730738945544,0.8191,2421.7,2421.2,0.30706893]
[1730738945739,4.12958,2421.6,2421.3,0.25050141]
[1730738946039,4.12958,2421.6,2421.2,4.43723893]
[1730738946239,4.12958,2421.6,2421.2,3.30706893]
[1730738946558,4.94843,2421.7,2421.2,7.43713893]
[1730738946947,4.12933,2421.7,2421.3,4.38037273]
[1730738947149,8.25879,2421.7,2421.4,0.25029242]
[1730738947460,4.12941,2421.7,2421.2,7.43714893]
[1730738947670,4.12941,2421.7,2421.3,0.2503063]
[1730738947871,4.12941,2421.7,2421.2,4.43714893]
[1730738948076,4.13001,2421.3,2421.2,0.30706893]
[1730738948378,4.12988,2421.4,2421.2,0.30706893]
[1730738948583,4.13001,2421.3,2421.2,0.30706893]
[1730738949137,4.94018,2421.8,2421.3,4.12992]
[1730738949479,4.94018,2421.8,2421.3,8.25979]
[1730738949639,4.12928,2421.8,2421.4,4.12983]
[1730738950039,4.12934,2421.7,2421.2,0.30706893]
[1730738950268,8.25857,2421.8,2421.3,4.21250064]
[1730738950531,4.12943,2421.7,2421.2,0.30706893]
[1730738950640,0.412943,2421.7,2421.2,0.30706893]
[1730738950970,4.95725,2422.1,2421.2,0.30706893]
[1730738950971,4.1296,2421.6,2421.2,0.30706893]
[1730738951172,4.12975,2421.5,2421.2,0.30706893]
[1730738951375,4.12984,2421.4,2421.2,0.30706893]
[1730738951673,4.13001,2421.3,2421.2,0.30706893]
[1730738951889,4.12984,2421.4,2421.2,0.30706893]
[1730738952183,4.542994,2421.3,2421.2,0.30706893]
[1730738952939,0.412984,2421.3,2420.6,4.98300375]
[1730738953191,4.13063,2421.0,2420.6,0.85181375]
[1730738953492,4.13077,2420.9,2420.7,0.30713236]
[1730738953698,0.55,2420.9,2420.5,0.0598355]
[1730738953986,4.13119,2420.7,2420.5,0.0598355]
[1730738954373,4.1312,2420.6,2420.5,0.0598355]
[1730738954871,4.8901,2420.6,2420.5,0.0598355]
[1730738957401,4.13107,2420.7,2420.5,0.0598355]
[1730738957562,4.1312,2420.6,2420.5,0.0598355]
[1730738958382,4.957427,2420.6,2420.5,0.0598355]
[1730738959465,4.1312,2420.6,2420.5,0.0598355]
[1730738959661,0.7949,2421.3,2420.5,0.14246523]
[1730738959866,9.71979555,2421.9,2420.5,0.14246523]
[1730738959867,0.7949,2421.6,2420.8,0.7902]
[1730738960200,4.12998,2421.4,2420.9,4.21327765]
[1730738960573,4.13027,2421.2,2420.9,0.08260765]
[1730738960785,4.9244,2421.6,2420.8,0.7902]
[1730738960786,4.1297,2421.5,2420.8,0.7902]
[1730738960991,4.12984,2421.4,2420.8,0.7902]
[1730738961192,4.9244,2421.6,2420.5,0.8570355]
[1730738961193,4.13086,2420.9,2420.5,0.8570355]
[1730738961706,8.2615,2420.9,2420.5,0.8570355]
[1730738961912,4.13091,2420.8,2420.5,0.8570355]
[1730738962214,4.13019,2421.2,2420.6,4.1312]
[1730738962376,4.13065,2421.0,2420.5,4.9883155]
[1730738962582,4.13065,2421.0,2420.6,0.66825059]
[1730738962979,4.13099,2420.8,2420.5,0.8570355]
[1730738963190,4.1312,2420.6,2420.5,0.0598355]
[1730738963525,3.26935509,2420.6,2420.5,0.0598355]
[1730738970915,3.26935509,2420.6,2420.5,0.00225727]
[1730738971109,4.0924176,2420.6,2420.5,0.00225727]
[1730738971615,4.6424176,2420.6,2420.5,0.00225727]
[1730738972273,3.26935509,2420.6,2420.5,0.00225727]
[1730738972687,4.13107,2420.7,2420.5,0.00225727]
[1730738972922,0.8323,2421.0,2420.5,0.00225727]
[1730738973218,8.26199,2420.8,2420.5,0.00225727]
[1730738973378,4.13118,2420.7,2420.5,0.00225727]
[1730738973574,4.1312,2420.6,2420.5,0.00225727]
[1730738975089,4.13118,2420.7,2420.5,0.00225727]
[1730738975319,0.756,2421.4,2420.6,1.05049943]
[1730738975535,4.00021331,2421.5,2420.8,4.13078]
[1730738975536,4.12967,2421.5,2420.8,4.13078]
[1730738975816,4.13016,2421.3,2420.9,0.25044774]
[1730738976027,4.13016,2421.3,2420.8,4.13078]
[1730738976028,4.13016,2421.3,2420.8,0.08260787]
[1730738976236,4.13016,2421.3,2420.9,4.38106014]
[1730738976379,4.13016,2421.3,2421.0,0.25044014]
[1730738976584,4.12972,2421.5,2421.1,4.2128478]
[1730738976815,4.13003,2421.3,2421.0,0.8]
[1730738977011,4.13003,2421.3,2421.1,0.2505078]
[1730738977215,4.1297,2421.5,2421.2,0.2505078]
[1730738977456,4.12959,2421.6,2421.3,0.25058647]
[1730738977653,4.12916,2421.8,2421.0,4.93051]
[1730738977859,4.12984,2421.5,2421.1,0.25060305]
[1730738978020,4.12996,2421.4,2421.2,0.25060305]
[1730738978221,4.12996,2421.4,2421.0,0.8]
[1730738978517,4.13013,2421.3,2421.1,0.25063194]
[1730738978750,4.13071,2420.9,2420.7,0.8]
[1730738979052,1.306,2421.5,2420.7,0.8]
[1730738979053,4.13031,2421.2,2420.8,0.25065153]
[1730738979261,4.13031,2421.2,2420.9,0.25065153]
[1730738979463,4.13031,2421.2,2420.7,4.93094]
[1730738979666,4.13031,2421.2,2420.8,0.65178393]
[1730738979964,0.756,2421.5,2420.9,0.25067634]
[1730738980120,0.756,2421.5,2421.0,0.25067634]
[1730738980121,4.13045,2421.1,2421.0,0.25067634]
[1730738980769,4.1301,2421.3,2421.0,0.25067634]
[1730738980937,4.1301,2421.3,2420.8,4.21337793]
[1730738981127,4.13036,2421.1,2420.9,0.65202301]
[1730738981322,4.13036,2421.1,2420.7,4.93103]
[1730738981323,4.13036,2421.1,2421.0,0.25077185]
[1730738981943,4.13036,2421.1,2421.0,0.65211704]
[1730738982144,4.13036,2421.1,2421.0,0.25077185]
[1730738982364,0.8173,2421.7,2421.0,0.25077185]
[1730738982524,4.13021,2421.2,2420.8,4.13085]
[1730738982725,4.13021,2421.2,2420.9,0.25115247]
[1730738983024,4.13025,2421.2,2421.0,0.25115247]
[1730738983231,4.12993,2421.4,2420.9,4.1306]